Workbook

Sheet Info
B1: شركة كونكورد للخرسانة الجاهزة | J1: a2
B2: م | C2: البيـــــــــــــــــــــــــــان | D2: مدين | E2: دائن | F2: الرصـــــــــيد | G2: التاريخ | H2: ملاحظات
B3: 1 | C3: A2 | D3: 416 | E3: 80 | F3: 336 | G3: 2020-02-03 | M3: Choose name then Press Run
B4: 2 | C4: A2 | D4: 206 | E4: 201 | F4: 5 | G4: 2020-02-03
B5: 3 | C5: A2 | D5: 847 | E5: 419 | F5: 428
B6: 4 | C6: A2 | D6: 267 | E6: 75 | F6: 192
B7: 5 | C7: A2 | D7: 650 | E7: 139 | F7: 511 | G7: 2020-02-03
B8: المجموع | D8: 2386 | E8: 914 | F8: 1472

Sheet الصندوق
B1: بيــــــــــــــان حركة الخزينة
B2: م | C2: البيـــــــــــــــــــــــــــان | D2: مدين | E2: دائن | F2: الرصـــــــــيد | G2: التاريخ | H2: ملاحظات
B3: 1 | C3: رصيد الخزينة 3/1 صباحا | F3: 500000 | G3: 2020-03-01
B4: 2 | C4: A1 | D4: 727 | E4: 130 | F4: =SUM(F3,D4,E4) -> 500857 | G4: 2020-03-01
B5: 3 | C5: A2 | D5: 416 | E5: 80 | F5: =SUM(F4,D5,E5) -> 501353 | G5: 2020-03-02
B6: 4 | C6: A3 | D6: 924 | E6: 333 | F6: 502610 | G6: 2020-03-02
B7: 5 | C7: A4 | D7: 653 | E7: 206 | F7: 503469 | G7: 2020-03-02
B8: 6 | C8: A5 | D8: 616 | E8: 173 | F8: 504258 | G8: 2020-03-02
B9: 7 | C9: A6 | D9: 118 | E9: 458 | F9: 504834 | G9: 2020-03-02
B10: 8 | C10: A7 | D10: 318 | E10: 127 | F10: 505279 | G10: 2020-03-02 | H10: شامله عموله البنك
B11: 9 | C11: A8 | D11: 651 | E11: 218 | F11: 506148 | G11: 2020-03-02
B12: 10 | C12: A9 | D12: 350 | E12: 221 | F12: 506719 | G12: 2020-03-02
B13: 11 | C13: A10 | D13: 446 | E13: 349 | F13: 507514 | G13: 2020-03-02
B14: 12 | C14: A11 | D14: 268 | E14: 267 | F14: 508049 | G14: 2020-03-02
B15: 13 | C15: A12 | D15: 244 | E15: 257 | F15: 508550 | G15: 2020-03-02
B16: 14 | C16: A13 | D16: 215 | E16: 80 | F16: 508845 | G16: 2020-03-02
B17: 15 | C17: A14 | D17: 697 | E17: 409 | F17: 509951 | G17: 2020-03-02
B18: 16 | C18: A15 | D18: 309 | E18: 150 | F18: 510410 | G18: 2020-03-02
B19: 17 | C19: A16 | D19: 433 | E19: 351 | F19: 511194 | G19: 2020-03-02

Sheet مصرف أبو ظبى
B1: بيــــــــــــــان مصرف أبو ظبى
B2: م | C2: البيــــــــــــــــان | D2: مدين | E2: دائن | F2: الرصيد
C3: رصيد ما قبله 3/1 | F3: 830000
A4: =IF(C4=Info!$B$1,COUNTIF('مصرف أبو ظبى '!$C4:C$724,'مصرف أبو ظبى '!C4),"") ->  | C4: A1 | D4: 670 | E4: 286 | F4: =SUM(F3,D4,E4) -> 830956 | G4: 2020-03-02
A5: =IF(C5=Info!$B$1,COUNTIF('مصرف أبو ظبى '!$C5:C$724,'مصرف أبو ظبى '!C5),"") ->  | C5: A2 | D5: 206 | E5: 201 | F5: =SUM(F4,D5,E5) -> 831363 | G5: 2020-03-02
A6: =IF(C6=Info!$B$1,COUNTIF('مصرف أبو ظبى '!$C6:C$724,'مصرف أبو ظبى '!C6),"") ->  | C6: A3 | D6: 106 | E6: 194 | F6: 831663 | G6: 2020-03-02
A7: =IF(C7=Info!$B$1,COUNTIF('مصرف أبو ظبى '!$C7:C$724,'مصرف أبو ظبى '!C7),"") ->  | C7: A4 | D7: 802 | E7: 62 | F7: 832527
A8: =IF(C8=Info!$B$1,COUNTIF('مصرف أبو ظبى '!$C8:C$724,'مصرف أبو ظبى '!C8),"") ->  | C8: A1 | D8: 338 | E8: 295 | F8: 833160 | G8: 2020-03-10
A9: =IF(C9=Info!$B$1,COUNTIF('مصرف أبو ظبى '!$C9:C$724,'مصرف أبو ظبى '!C9),"") ->  | C9: A6 | D9: 415 | E9: 399 | F9: 833974
A10: =IF(C10=Info!$B$1,COUNTIF('مصرف أبو ظبى '!$C10:C$724,'مصرف أبو ظبى '!C10),"") ->  | C10: A7 | D10: 711 | E10: 331 | F10: 835016 | G10: 2020-03-04
A11: =IF(C11=Info!$B$1,COUNTIF('مصرف أبو ظبى '!$C11:C$724,'مصرف أبو ظبى '!C11),"") ->  | C11: A8 | D11: 829 | E11: 75 | F11: 835920 | G11: 2020-03-04
A12: =IF(C12=Info!$B$1,COUNTIF('مصرف أبو ظبى '!$C12:C$724,'مصرف أبو ظبى '!C12),"") ->  | C12: A9 | D12: 811 | E12: 94 | F12: 836825
A13: =IF(C13=Info!$B$1,COUNTIF('مصرف أبو ظبى '!$C13:C$724,'مصرف أبو ظبى '!C13),"") ->  | C13: A10 | D13: 670 | E13: 224 | F13: 837719 | G13: 2020-03-05 | H13: 272
A14: =IF(C14=Info!$B$1,COUNTIF('مصرف أبو ظبى '!$C14:C$724,'مصرف أبو ظبى '!C14),"") ->  | C14: A11 | D14: 264 | E14: 162 | F14: 838145 | G14: 2020-03-05 | H14: 373
A15: =IF(C15=Info!$B$1,COUNTIF('مصرف أبو ظبى '!$C15:C$724,'مصرف أبو ظبى '!C15),"") ->  | C15: A12 | D15: 824 | E15: 291 | F15: 839260 | G15: 2020-03-05 | H15: 376
A16: =IF(C16=Info!$B$1,COUNTIF('مصرف أبو ظبى '!$C16:C$724,'مصرف أبو ظبى '!C16),"") ->  | C16: A13 | D16: 579 | E16: 418 | F16: 840257 | G16: 2020-03-05 | H16: 377
A17: =IF(C17=Info!$B$1,COUNTIF('مصرف أبو ظبى '!$C17:C$724,'مصرف أبو ظبى '!C17),"") ->  | C17: A14 | D17: 115 | E17: 395 | F17: 840767 | G17: 2020-03-05 | H17: 378
A18: =IF(C18=Info!$B$1,COUNTIF('مصرف أبو ظبى '!$C18:C$724,'مصرف أبو ظبى '!C18),"") ->  | C18: A15 | D18: 572 | E18: 472 | F18: 841811
A19: =IF(C19=Info!$B$1,COUNTIF('مصرف أبو ظبى '!$C19:C$724,'مصرف أبو ظبى '!C19),"") ->  | C19: A16 | D19: 217 | E19: 312 | F19: 842340
A20: =IF(C20=Info!$B$1,COUNTIF('مصرف أبو ظبى '!$C20:C$724,'مصرف أبو ظبى '!C20),"") ->  | C20: سحب بشيك أنور عبدالله / الخزينة | E20: 100000 | F20: =F19+D20-E20 -> 742340 | G20: 2020-03-09
A21: =IF(C21=Info!$B$1,COUNTIF('مصرف أبو ظبى '!$C21:C$724,'مصرف أبو ظبى '!C21),"") ->  | C21: ابراهيم عمر | E21: 45000 | F21: 697340
A22: =IF(C22=Info!$B$1,COUNTIF('مصرف أبو ظبى '!$C22:C$724,'مصرف أبو ظبى '!C22),"") ->  | C22: محمد مجدى محمد القناوي | E22: 80000 | F22: 617340 | G22: 2020-03-11
A23: =IF(C23=Info!$B$1,COUNTIF('مصرف أبو ظبى '!$C23:C$724,'مصرف أبو ظبى '!C23),"") ->  | C23: محمد مجدى محمد القناوي | D23: 10000 | F23: 627340
A24: =IF(C24=Info!$B$1,COUNTIF('مصرف أبو ظبى '!$C24:C$724,'مصرف أبو ظبى '!C24),"") ->  | C24: رد مبلغ محجوز تم حجزه لتغطية وعموله خطاب ضمان بيجام ولم يتم خصمه من البنك حتى تاريخه | D24: 560000 | F24: 1187340
A25: =IF(C25=Info!$B$1,COUNTIF('مصرف أبو ظبى '!$C25:C$724,'مصرف أبو ظبى '!C25),"") ->  | C25: أنور عبدالله / الخزينة | E25: 200000 | F25: 987340 | G25: 2020-03-16
A26: =IF(C26=Info!$B$1,COUNTIF('مصرف أبو ظبى '!$C26:C$724,'مصرف أبو ظبى '!C26),"") ->  | C26: عهدة محمد أحمد فؤاد | F26: 987340
A27: =IF(C27=Info!$B$1,COUNTIF('مصرف أبو ظبى '!$C27:C$724,'مصرف أبو ظبى '!C27),"") ->  | C27: سحب بشيك أنور عبدالله / الخزينة | E27: 100000 | F27: 887340 | G27: 2020-03-17
A28: =IF(C28=Info!$B$1,COUNTIF('مصرف أبو ظبى '!$C28:C$724,'مصرف أبو ظبى '!C28),"") ->  | C28: الرصيد 3/17 | F28: 887340
A29: =IF(C29=Info!$B$1,COUNTIF('مصرف أبو ظبى '!$C29:C$724,'مصرف أبو ظبى '!C29),"") ->  | C29: تحويل من مارينا | D29: 1408466 | F29: 2295806 | N29: =F29+I3 -> 2295806
A30: =IF(C30=Info!$B$1,COUNTIF('مصرف أبو ظبى '!$C30:C$724,'مصرف أبو ظبى '!C30),"") ->  | C30: هانى محمد محمد الجوهري | E30: 30000 | F30: 2265806 | G30: 2020-03-18 | H30: 384
A31: =IF(C31=Info!$B$1,COUNTIF('مصرف أبو ظبى '!$C31:C$724,'مصرف أبو ظبى '!C31),"") ->  | C31: سحب شيك للخزينة / أنور عبدالله | E31: 100000 | F31: 2165806 | G31: 2020-03-18 | H31: 385
A32: =IF(C32=Info!$B$1,COUNTIF('مصرف أبو ظبى '!$C32:C$724,'مصرف أبو ظبى '!C32),"") ->  | C32: سحب شيك للخزينة / أحمد جاد | E32: 120000 | F32: 2045806 | G32: 2020-03-18 | H32: 386
A33: =IF(C33=Info!$B$1,COUNTIF('مصرف أبو ظبى '!$C33:C$724,'مصرف أبو ظبى '!C33),"") ->  | C33: أحمد محمود عبدالرحيم قبيصى دفعة من مواسير بيجام | E33: 200000 | F33: 1845806 | G33: 2020-03-18 | H33: 432
A34: =IF(C34=Info!$B$1,COUNTIF('مصرف أبو ظبى '!$C34:C$724,'مصرف أبو ظبى '!C34),"") ->  | C34: سحب بشيك حاتم بيومى / الخزينة | E34: 500000 | F34: 1345806 | G34: 2020-03-19 | H34: 389
A35: =IF(C35=Info!$B$1,COUNTIF('مصرف أبو ظبى '!$C35:C$724,'مصرف أبو ظبى '!C35),"") ->  | C35: سحب بشيك أنور عبدالله / الخزينة | E35: 100000 | F35: 1245806 | G35: 2020-03-19 | H35: 390
A36: =IF(C36=Info!$B$1,COUNTIF('مصرف أبو ظبى '!$C36:C$724,'مصرف أبو ظبى '!C36),"") ->  | C36: طارق عبدالعزيز أحمد عامر - شركة آل عامر | E36: 150000 | F36: =F35+D36-E36 -> 1095806 | G36: 2020-03-20
A37: =IF(C37=Info!$B$1,COUNTIF('مصرف أبو ظبى '!$C37:C$724,'مصرف أبو ظبى '!C37),"") ->  | C37: ياسر عرفه محمد (مركز بيتى للدهانات) | E37: 70000 | F37: 1025806 | G37: 2020-03-20 | H37: 379
A38: =IF(C38=Info!$B$1,COUNTIF('مصرف أبو ظبى '!$C38:C$724,'مصرف أبو ظبى '!C38),"") ->  | C38: محمد أحمد عبدالسلام / نجارة وحداده سموحه | E38: 100000 | F38: 925806 | G38: 2020-03-22 | H38: 392
A39: =IF(C39=Info!$B$1,COUNTIF('مصرف أبو ظبى '!$C39:C$724,'مصرف أبو ظبى '!C39),"") ->  | C39: شيك أنور عبدالله / الخزينة | E39: 200000 | F39: 725806 | G39: 2020-03-23
A40: =IF(C40=Info!$B$1,COUNTIF('مصرف أبو ظبى '!$C40:C$724,'مصرف أبو ظبى '!C40),"") ->  | C40: صرف شيك أنور عبدالله / الخزينة | E40: 80000 | F40: 645806 | G40: 2020-03-24 | H40: 393
A41: =IF(C41=Info!$B$1,COUNTIF('مصرف أبو ظبى '!$C41:C$724,'مصرف أبو ظبى '!C41),"") ->  | C41: صرف بشيك أنور عبدالله | E41: 20000 | F41: 625806 | G41: 2020-03-25
A42: =IF(C42=Info!$B$1,COUNTIF('مصرف أبو ظبى '!$C42:C$724,'مصرف أبو ظبى '!C42),"") ->  | C42: علاء محمد الغريب عطيه | E42: 405 | F42: 625401
A43: =IF(C43=Info!$B$1,COUNTIF('مصرف أبو ظبى '!$C43:C$724,'مصرف أبو ظبى '!C43),"") ->  | C43: رد مبلغ محجوز تحت حساب خطابات الضمان | D43: 53744.74 | F43: 679145.74
A44: =IF(C44=Info!$B$1,COUNTIF('مصرف أبو ظبى '!$C44:C$724,'مصرف أبو ظبى '!C44),"") ->  | C44: تجديد خطاب ضمان دفعة مقدمة عملية اكتوبر اوراسكوم واتش ايه | E44: 6020 | F44: 673125.74
A45: =IF(C45=Info!$B$1,COUNTIF('مصرف أبو ظبى '!$C45:C$724,'مصرف أبو ظبى '!C45),"") ->  | C45: تحويل من بيجام دفعة مقدمة | D45: 2000000 | F45: 2673125.74 | G45: 2020-04-16 | H45: تحويل
A46: =IF(C46=Info!$B$1,COUNTIF('مصرف أبو ظبى '!$C46:C$724,'مصرف أبو ظبى '!C46),"") ->  | C46: علاء محمد الغريب عطيه | E46: 200000 | F46: 2473125.74 | G46: 2020-04-22 | H46: 404
A47: =IF(C47=Info!$B$1,COUNTIF('مصرف أبو ظبى '!$C47:C$724,'مصرف أبو ظبى '!C47),"") ->  | C47: إبراهيم محمد عمر | E47: 100000 | F47: 2373125.74 | G47: 2020-04-22 | H47: 405
A48: =IF(C48=Info!$B$1,COUNTIF('مصرف أبو ظبى '!$C48:C$724,'مصرف أبو ظبى '!C48),"") ->  | C48: راضى على الدين | E48: 50000 | F48: 2323125.74 | G48: 2020-04-22 | H48: 406
A49: =IF(C49=Info!$B$1,COUNTIF('مصرف أبو ظبى '!$C49:C$724,'مصرف أبو ظبى '!C49),"") ->  | C49: محمد ربيعى | E49: 35000 | F49: 2288125.74 | G49: 2020-04-22 | H49: 407
A50: =IF(C50=Info!$B$1,COUNTIF('مصرف أبو ظبى '!$C50:C$724,'مصرف أبو ظبى '!C50),"") ->  | C50: محمود زارع | E50: 35000 | F50: 2253125.74 | G50: 2020-04-22 | H50: 408
A51: =IF(C51=Info!$B$1,COUNTIF('مصرف أبو ظبى '!$C51:C$724,'مصرف أبو ظبى '!C51),"") ->  | C51: حسن عوف | E51: 83000 | F51: 2170125.74 | G51: 2020-04-22 | H51: 409
A52: =IF(C52=Info!$B$1,COUNTIF('مصرف أبو ظبى '!$C52:C$724,'مصرف أبو ظبى '!C52),"") ->  | C52: شركة عمرو / مصنع ستار جى ار بى | E52: 200000 | F52: 1970125.74 | G52: 2020-04-22 | H52: 410
A53: =IF(C53=Info!$B$1,COUNTIF('مصرف أبو ظبى '!$C53:C$724,'مصرف أبو ظبى '!C53),"") ->  | C53: تحويل الى شركة النصر للمسبوكات | E53: 1275000 | F53: 695125.74 | G53: 2020-04-22 | H53: تحويل
A54: =IF(C54=Info!$B$1,COUNTIF('مصرف أبو ظبى '!$C54:C$724,'مصرف أبو ظبى '!C54),"") ->  | C54: مصاريف بنكية رسوم كشوف حسابات | E54: 120 | F54: 695005.74
C76: بيـــــــــــــــــان خاص بالفريحة
C77: البيــــــــــــــــــان | D77: ما تم تحصيله | E77: المصروفات المباشرة | F77: الرصيد | G77: التاريخ
C78: وارد شيك دفعة مقدمة بنى عبس | D78: 4001364 | F78: =D78 -> 4001364
C79: وارد شيك دفعة مقدمة قرية إبراهيم حسن | D79: 7486822 | F79: =F78+D79-E79 -> 11488186
C80: وارد شيك دفعة مقدمة منشأة الامير | D80: 6057918 | F80: =F79+D80-E80 -> 17546104
C81: مصاريف خطابات الضمان الابتدائى 3 مشروعات | E81: 8210 | F81: 17537894
C82: محجوز غطاء ضمان نهائى 3 مشروعات الفرايحة | E82: 877305.2 | F82: 16660588.8
C83: عمولات اصدار خطابات ضمان نهائى الفرايحة 3مشروعات | E83: 140456.84 | F83: 16520131.96
C84: غطاء خطاب ضمان دفعة مقدمة قرية بنى عبس | E84: =D78*0.05 -> 200068.2 | F84: 16320063.76
C85: غطاء خطاب ضمان دفعة مقدمة قرية إبراهيم حسن | E85: =D79*0.05 -> 374341.1 | F85: 15945722.66
C86: غطاء خطاب ضمان دفعة مقدمة قرية منشأة الامير | E86: =D80*0.05 -> 302895.9 | F86: 15642826.76
C87: عمولات اصدار خطابات ضمان الدفعة المقدمة الفرايحة 3مشروعات | E87: 210553.25 | F87: 15432273.51
F88: 15432273.51
F89: 15432273.51
F90: 15432273.51
F91: 15432273.51
F92: 15432273.51

Sheet الاهلى المتحد
B1: بيــــــــــــــان بنك الاهلى المتحد
B2: م | C2: البيــــــــــــــــان | D2: مدين | E2: دائن | F2: الرصيد
C3: رصيد ما قبله 3/1 | F3: 582000
A4: =IF(C4=Info!$C$3,COUNTIF('مصرف أبو ظبى '!$C4:C$724,'مصرف أبو ظبى '!C4),"") ->  | B4: 1 | C4: A1 | D4: 808 | E4: 349 | F4: =SUM(F3,D4,E4) -> 583157 | G4: 2020-03-02
A5: =IF(C5=Info!$C$3,COUNTIF('مصرف أبو ظبى '!$C5:C$724,'مصرف أبو ظبى '!C5),"") -> 1 | C5: A2 | D5: 847 | E5: 419 | F5: =SUM(F4,D5,E5) -> 584423
A6: =IF(C6=Info!$C$3,COUNTIF('مصرف أبو ظبى '!$C6:C$724,'مصرف أبو ظبى '!C6),"") ->  | C6: A3 | D6: 373 | E6: 210 | F6: 585006 | G6: 2020-03-05 | H6: 6803316
A7: =IF(C7=Info!$C$3,COUNTIF('مصرف أبو ظبى '!$C7:C$724,'مصرف أبو ظبى '!C7),"") ->  | C7: A4 | D7: 133 | E7: 83 | F7: 585222
A8: =IF(C8=Info!$C$3,COUNTIF('مصرف أبو ظبى '!$C8:C$724,'مصرف أبو ظبى '!C8),"") ->  | C8: A5 | D8: 768 | E8: 429 | F8: 586419 | G8: 2020-03-08 | H8: 6803317
A9: =IF(C9=Info!$C$3,COUNTIF('مصرف أبو ظبى '!$C9:C$724,'مصرف أبو ظبى '!C9),"") ->  | C9: A6 | D9: 461 | E9: 81 | F9: 586961
A10: =IF(C10=Info!$C$3,COUNTIF('مصرف أبو ظبى '!$C10:C$724,'مصرف أبو ظبى '!C10),"") ->  | C10: A7 | D10: 125 | E10: 404 | F10: 587490 | G10: 2020-03-11
A11: =IF(C11=Info!$C$3,COUNTIF('مصرف أبو ظبى '!$C11:C$724,'مصرف أبو ظبى '!C11),"") ->  | C11: A8 | D11: 853 | E11: 314 | F11: 588657
A12: =IF(C12=Info!$C$3,COUNTIF('مصرف أبو ظبى '!$C12:C$724,'مصرف أبو ظبى '!C12),"") ->  | C12: A9 | D12: 150 | E12: 424 | F12: 589231 | G12: 2020-03-02
A13: =IF(C13=Info!$C$3,COUNTIF('مصرف أبو ظبى '!$C13:C$724,'مصرف أبو ظبى '!C13),"") ->  | C13: A10 | D13: 331 | E13: 186 | F13: 589748 | G13: 2020-03-02
A14: =IF(C14=Info!$C$3,COUNTIF('مصرف أبو ظبى '!$C14:C$724,'مصرف أبو ظبى '!C14),"") ->  | C14: A11 | D14: 808 | E14: 283 | F14: 590839 | G14: 2020-03-02
A15: =IF(C15=Info!$C$3,COUNTIF('مصرف أبو ظبى '!$C15:C$724,'مصرف أبو ظبى '!C15),"") ->  | C15: A12 | D15: 774 | E15: 339 | F15: 591952
A16: =IF(C16=Info!$C$3,COUNTIF('مصرف أبو ظبى '!$C16:C$724,'مصرف أبو ظبى '!C16),"") ->  | C16: A13 | D16: 690 | E16: 258 | F16: 592900 | G16: 2020-03-10
A17: =IF(C17=Info!$C$3,COUNTIF('مصرف أبو ظبى '!$C17:C$724,'مصرف أبو ظبى '!C17),"") ->  | C17: A14 | D17: 906 | E17: 62 | F17: 593868
A18: =IF(C18=Info!$C$3,COUNTIF('مصرف أبو ظبى '!$C18:C$724,'مصرف أبو ظبى '!C18),"") ->  | C18: A15 | D18: 213 | E18: 112 | F18: 594193 | G18: 2020-03-04
A19: =IF(C19=Info!$C$3,COUNTIF('مصرف أبو ظبى '!$C19:C$724,'مصرف أبو ظبى '!C19),"") ->  | C19: A16 | D19: 999 | E19: 70 | F19: 595262 | G19: 2020-03-04
A20: =IF(C20=Info!$C$3,COUNTIF('مصرف أبو ظبى '!$C20:C$724,'مصرف أبو ظبى '!C20),"") ->  | C20: رصيد ابوظبى 2020/3/4م | F20: =F19+D20-E20 -> 595262
A21: =IF(C21=Info!$C$3,COUNTIF('مصرف أبو ظبى '!$C21:C$724,'مصرف أبو ظبى '!C21),"") ->  | C21: حسنى كمال رسلان | E21: 30000 | F21: 565262 | G21: 2020-03-05 | H21: 272
A22: =IF(C22=Info!$C$3,COUNTIF('مصرف أبو ظبى '!$C22:C$724,'مصرف أبو ظبى '!C22),"") ->  | C22: محمد مجدى محمد القناوي | E22: 15000 | F22: 550262 | G22: 2020-03-05 | H22: 373
A23: =IF(C23=Info!$C$3,COUNTIF('مصرف أبو ظبى '!$C23:C$724,'مصرف أبو ظبى '!C23),"") ->  | C23: محمود السيد محمد عبدالمجيد (حفر العاصمة) | E23: 21079 | F23: 529183 | G23: 2020-03-05 | H23: 376
A24: =IF(C24=Info!$C$3,COUNTIF('مصرف أبو ظبى '!$C24:C$724,'مصرف أبو ظبى '!C24),"") ->  | C24: محمد السيد محمد جبر | E24: 20000 | F24: 509183 | G24: 2020-03-05 | H24: 377
A25: =IF(C25=Info!$C$3,COUNTIF('مصرف أبو ظبى '!$C25:C$724,'مصرف أبو ظبى '!C25),"") ->  | C25: عهدة محمد أحمد فؤاد | E25: 40000 | F25: 469183 | G25: 2020-03-05 | H25: 378
A26: =IF(C26=Info!$C$3,COUNTIF('مصرف أبو ظبى '!$C26:C$724,'مصرف أبو ظبى '!C26),"") ->  | C26: شركة عمرو / مصنع ستار جى ار بى | E26: 30000 | F26: 439183
A27: =IF(C27=Info!$C$3,COUNTIF('مصرف أبو ظبى '!$C27:C$724,'مصرف أبو ظبى '!C27),"") ->  | C27: ابراهيم عمر | D27: 150000 | F27: 589183
A28: =IF(C28=Info!$C$3,COUNTIF('مصرف أبو ظبى '!$C28:C$724,'مصرف أبو ظبى '!C28),"") ->  | C28: سحب بشيك أنور عبدالله / الخزينة | E28: 100000 | F28: 489183 | G28: 2020-03-09
A29: =IF(C29=Info!$C$3,COUNTIF('مصرف أبو ظبى '!$C29:C$724,'مصرف أبو ظبى '!C29),"") ->  | C29: ابراهيم عمر | E29: 45000 | F29: 444183
A30: =IF(C30=Info!$C$3,COUNTIF('مصرف أبو ظبى '!$C30:C$724,'مصرف أبو ظبى '!C30),"") ->  | C30: محمد مجدى محمد القناوي | E30: 80000 | F30: 364183 | G30: 2020-03-11
A31: =IF(C31=Info!$C$3,COUNTIF('مصرف أبو ظبى '!$C31:C$724,'مصرف أبو ظبى '!C31),"") ->  | C31: محمد مجدى محمد القناوي | D31: 10000 | F31: 374183
A32: =IF(C32=Info!$C$3,COUNTIF('مصرف أبو ظبى '!$C32:C$724,'مصرف أبو ظبى '!C32),"") ->  | C32: رد مبلغ محجوز تم حجزه لتغطية وعموله خطاب ضمان بيجام ولم يتم خصمه من البنك حتى تاريخه | D32: 560000 | F32: 934183
A33: =IF(C33=Info!$C$3,COUNTIF('مصرف أبو ظبى '!$C33:C$724,'مصرف أبو ظبى '!C33),"") ->  | C33: أنور عبدالله / الخزينة | E33: 200000 | F33: 734183 | G33: 2020-03-16
A34: =IF(C34=Info!$C$3,COUNTIF('مصرف أبو ظبى '!$C34:C$724,'مصرف أبو ظبى '!C34),"") ->  | C34: عهدة محمد أحمد فؤاد | F34: 734183
A35: =IF(C35=Info!$C$3,COUNTIF('مصرف أبو ظبى '!$C35:C$724,'مصرف أبو ظبى '!C35),"") ->  | C35: سحب بشيك أنور عبدالله / الخزينة | E35: 100000 | F35: 634183 | G35: 2020-03-17
A36: =IF(C36=Info!$C$3,COUNTIF('مصرف أبو ظبى '!$C36:C$724,'مصرف أبو ظبى '!C36),"") ->  | C36: الرصيد 3/17 | F36: 634183
A37: =IF(C37=Info!$C$3,COUNTIF('مصرف أبو ظبى '!$C37:C$724,'مصرف أبو ظبى '!C37),"") ->  | C37: تحويل من مارينا | D37: 1408466 | F37: 2042649
A38: =IF(C38=Info!$C$3,COUNTIF('مصرف أبو ظبى '!$C38:C$724,'مصرف أبو ظبى '!C38),"") ->  | C38: هانى محمد محمد الجوهري | E38: 30000 | F38: 2012649 | G38: 2020-03-18 | H38: 384
A39: =IF(C39=Info!$C$3,COUNTIF('مصرف أبو ظبى '!$C39:C$724,'مصرف أبو ظبى '!C39),"") ->  | C39: سحب شيك للخزينة / أنور عبدالله | E39: 100000 | F39: 1912649 | G39: 2020-03-18 | H39: 385
A40: =IF(C40=Info!$C$3,COUNTIF('مصرف أبو ظبى '!$C40:C$724,'مصرف أبو ظبى '!C40),"") ->  | C40: سحب شيك للخزينة / أحمد جاد | E40: 120000 | F40: 1792649 | G40: 2020-03-18 | H40: 386
A41: =IF(C41=Info!$C$3,COUNTIF('مصرف أبو ظبى '!$C41:C$724,'مصرف أبو ظبى '!C41),"") ->  | C41: أحمد محمود عبدالرحيم قبيصى دفعة من مواسير بيجام | E41: 200000 | F41: 1592649 | G41: 2020-03-18 | H41: 432
A42: =IF(C42=Info!$C$3,COUNTIF('مصرف أبو ظبى '!$C42:C$724,'مصرف أبو ظبى '!C42),"") ->  | C42: سحب بشيك حاتم بيومى / الخزينة | E42: 500000 | F42: 1092649 | G42: 2020-03-19 | H42: 389
A43: =IF(C43=Info!$C$3,COUNTIF('مصرف أبو ظبى '!$C43:C$724,'مصرف أبو ظبى '!C43),"") ->  | C43: سحب بشيك أنور عبدالله / الخزينة | E43: 100000 | F43: 992649 | G43: 2020-03-19 | H43: 390
A44: =IF(C44=Info!$C$3,COUNTIF('مصرف أبو ظبى '!$C44:C$724,'مصرف أبو ظبى '!C44),"") ->  | C44: طارق عبدالعزيز أحمد عامر - شركة آل عامر | E44: 150000 | F44: 842649 | G44: 2020-03-20
A45: =IF(C45=Info!$C$3,COUNTIF('مصرف أبو ظبى '!$C45:C$724,'مصرف أبو ظبى '!#REF!),"") ->  | C45: ياسر عرفه محمد (مركز بيتى للدهانات) | E45: 70000 | F45: 772649 | G45: 2020-03-20 | H45: 379
A46: =IF(C46=Info!$C$3,COUNTIF('مصرف أبو ظبى '!$C45:C$724,'مصرف أبو ظبى '!C45),"") ->  | C46: محمد أحمد عبدالسلام / نجارة وحداده سموحه | E46: 100000 | F46: 672649 | G46: 2020-03-22 | H46: 392
A47: =IF(C47=Info!$C$3,COUNTIF('مصرف أبو ظبى '!$C46:C$724,'مصرف أبو ظبى '!C46),"") ->  | C47: شيك أنور عبدالله / الخزينة | E47: 200000 | F47: 472649 | G47: 2020-03-23
C48: صرف شيك أنور عبدالله / الخزينة | E48: 80000 | F48: 392649 | G48: 2020-03-24 | H48: 393
C49: صرف بشيك أنور عبدالله | E49: 20000 | F49: 372649 | G49: 2020-03-25
C50: علاء محمد الغريب عطيه | E50: 405 | F50: 372244
C51: رد مبلغ محجوز تحت حساب خطابات الضمان | D51: 53744.74 | F51: 425988.74
C52: تجديد خطاب ضمان دفعة مقدمة عملية اكتوبر اوراسكوم واتش ايه | E52: 6020 | F52: 419968.74
C53: تحويل من بيجام دفعة مقدمة | D53: 2000000 | F53: 2419968.74 | G53: 2020-04-16 | H53: تحويل
C54: علاء محمد الغريب عطيه | E54: 200000 | F54: 2219968.74 | G54: 2020-04-22 | H54: 404
C55: إبراهيم محمد عمر | E55: 100000 | F55: 2119968.74 | G55: 2020-04-22 | H55: 405
C56: راضى على الدين | E56: 50000 | F56: 2069968.74 | G56: 2020-04-22 | H56: 406
C57: محمد ربيعى | E57: 35000 | F57: 2034968.74 | G57: 2020-04-22 | H57: 407
C58: محمود زارع | E58: 35000 | F58: 1999968.74 | G58: 2020-04-22 | H58: 408
C59: حسن عوف | E59: 83000 | F59: 1916968.74 | G59: 2020-04-22 | H59: 409
C60: شركة عمرو / مصنع ستار جى ار بى | E60: 200000 | F60: 1716968.74 | G60: 2020-04-22 | H60: 410
C61: تحويل الى شركة النصر للمسبوكات | E61: 1275000 | F61: 441968.74 | G61: 2020-04-22 | H61: تحويل
C62: مصاريف بنكية رسوم كشوف حسابات | E62: 120 | F62: 441848.74

Sheet المشرق
B1: بيــــــــــــــان بنك الاهلى المتحد
B2: م | C2: البيــــــــــــــــان | D2: مدين | E2: دائن | F2: الرصيد
C3: رصيد ما قبله 3/1 | F3: 582000
A4: =IF(C4=Info!$C$3,COUNTIF('مصرف أبو ظبى '!$C4:C$724,'مصرف أبو ظبى '!C4),"") ->  | B4: 1 | C4: A1 | D4: 405 | E4: 175 | F4: =SUM(F3,D4,E4) -> 582580 | G4: 2020-03-02
A5: =IF(C5=Info!$C$3,COUNTIF('مصرف أبو ظبى '!$C5:C$724,'مصرف أبو ظبى '!C5),"") -> 1 | C5: A2 | D5: 267 | E5: 75 | F5: =SUM(F4,D5,E5) -> 582922
A6: =IF(C6=Info!$C$3,COUNTIF('مصرف أبو ظبى '!$C6:C$724,'مصرف أبو ظبى '!C6),"") ->  | C6: A3 | D6: 782 | E6: 158 | F6: 583862 | G6: 2020-03-05 | H6: 6803316
A7: =IF(C7=Info!$C$3,COUNTIF('مصرف أبو ظبى '!$C7:C$724,'مصرف أبو ظبى '!C7),"") ->  | C7: A4 | D7: 701 | E7: 207 | F7: 584770
A8: =IF(C8=Info!$C$3,COUNTIF('مصرف أبو ظبى '!$C8:C$724,'مصرف أبو ظبى '!C8),"") ->  | C8: A5 | D8: 171 | E8: 239 | F8: 585180 | G8: 2020-03-08 | H8: 6803317
A9: =IF(C9=Info!$C$3,COUNTIF('مصرف أبو ظبى '!$C9:C$724,'مصرف أبو ظبى '!C9),"") ->  | C9: A6 | D9: 410 | E9: 436 | F9: 586026
A10: =IF(C10=Info!$C$3,COUNTIF('مصرف أبو ظبى '!$C10:C$724,'مصرف أبو ظبى '!C10),"") ->  | C10: A7 | D10: 932 | E10: 340 | F10: 587298 | G10: 2020-03-11
A11: =IF(C11=Info!$C$3,COUNTIF('مصرف أبو ظبى '!$C11:C$724,'مصرف أبو ظبى '!C11),"") ->  | C11: A8 | D11: 524 | E11: 495 | F11: 588317
A12: =IF(C12=Info!$C$3,COUNTIF('مصرف أبو ظبى '!$C12:C$724,'مصرف أبو ظبى '!C12),"") ->  | C12: A9 | D12: 683 | E12: 340 | F12: 589340 | G12: 2020-03-02
A13: =IF(C13=Info!$C$3,COUNTIF('مصرف أبو ظبى '!$C13:C$724,'مصرف أبو ظبى '!C13),"") ->  | C13: A10 | D13: 738 | E13: 163 | F13: 590241 | G13: 2020-03-02
A14: =IF(C14=Info!$C$3,COUNTIF('مصرف أبو ظبى '!$C14:C$724,'مصرف أبو ظبى '!C14),"") ->  | C14: A11 | D14: 236 | E14: 89 | F14: 590566 | G14: 2020-03-02
A15: =IF(C15=Info!$C$3,COUNTIF('مصرف أبو ظبى '!$C15:C$724,'مصرف أبو ظبى '!C15),"") ->  | C15: A12 | D15: 138 | E15: 259 | F15: 590963
A16: =IF(C16=Info!$C$3,COUNTIF('مصرف أبو ظبى '!$C16:C$724,'مصرف أبو ظبى '!C16),"") ->  | C16: A13 | D16: 387 | E16: 482 | F16: 591832 | G16: 2020-03-10
A17: =IF(C17=Info!$C$3,COUNTIF('مصرف أبو ظبى '!$C17:C$724,'مصرف أبو ظبى '!C17),"") ->  | C17: A14 | D17: 461 | E17: 469 | F17: 592762
A18: =IF(C18=Info!$C$3,COUNTIF('مصرف أبو ظبى '!$C18:C$724,'مصرف أبو ظبى '!C18),"") ->  | C18: A15 | D18: 582 | E18: 316 | F18: 593660 | G18: 2020-03-04
A19: =IF(C19=Info!$C$3,COUNTIF('مصرف أبو ظبى '!$C19:C$724,'مصرف أبو ظبى '!C19),"") ->  | C19: A16 | D19: 775 | E19: 94 | F19: 594529 | G19: 2020-03-04
A20: =IF(C20=Info!$C$3,COUNTIF('مصرف أبو ظبى '!$C20:C$724,'مصرف أبو ظبى '!C20),"") ->  | C20: رصيد ابوظبى 2020/3/4م | F20: =F19+D20-E20 -> 594529
A21: =IF(C21=Info!$C$3,COUNTIF('مصرف أبو ظبى '!$C21:C$724,'مصرف أبو ظبى '!C21),"") ->  | C21: حسنى كمال رسلان | E21: 30000 | F21: 564529 | G21: 2020-03-05 | H21: 272
A22: =IF(C22=Info!$C$3,COUNTIF('مصرف أبو ظبى '!$C22:C$724,'مصرف أبو ظبى '!C22),"") ->  | C22: محمد مجدى محمد القناوي | E22: 15000 | F22: 549529 | G22: 2020-03-05 | H22: 373
A23: =IF(C23=Info!$C$3,COUNTIF('مصرف أبو ظبى '!$C23:C$724,'مصرف أبو ظبى '!C23),"") ->  | C23: محمود السيد محمد عبدالمجيد (حفر العاصمة) | E23: 21079 | F23: 528450 | G23: 2020-03-05 | H23: 376
A24: =IF(C24=Info!$C$3,COUNTIF('مصرف أبو ظبى '!$C24:C$724,'مصرف أبو ظبى '!C24),"") ->  | C24: محمد السيد محمد جبر | E24: 20000 | F24: 508450 | G24: 2020-03-05 | H24: 377
A25: =IF(C25=Info!$C$3,COUNTIF('مصرف أبو ظبى '!$C25:C$724,'مصرف أبو ظبى '!C25),"") ->  | C25: عهدة محمد أحمد فؤاد | E25: 40000 | F25: 468450 | G25: 2020-03-05 | H25: 378
A26: =IF(C26=Info!$C$3,COUNTIF('مصرف أبو ظبى '!$C26:C$724,'مصرف أبو ظبى '!C26),"") ->  | C26: شركة عمرو / مصنع ستار جى ار بى | E26: 30000 | F26: 438450
A27: =IF(C27=Info!$C$3,COUNTIF('مصرف أبو ظبى '!$C27:C$724,'مصرف أبو ظبى '!C27),"") ->  | C27: ابراهيم عمر | D27: 150000 | F27: 588450
A28: =IF(C28=Info!$C$3,COUNTIF('مصرف أبو ظبى '!$C28:C$724,'مصرف أبو ظبى '!C28),"") ->  | C28: سحب بشيك أنور عبدالله / الخزينة | E28: 100000 | F28: 488450 | G28: 2020-03-09
A29: =IF(C29=Info!$C$3,COUNTIF('مصرف أبو ظبى '!$C29:C$724,'مصرف أبو ظبى '!C29),"") ->  | C29: ابراهيم عمر | E29: 45000 | F29: 443450
A30: =IF(C30=Info!$C$3,COUNTIF('مصرف أبو ظبى '!$C30:C$724,'مصرف أبو ظبى '!C30),"") ->  | C30: محمد مجدى محمد القناوي | E30: 80000 | F30: 363450 | G30: 2020-03-11
A31: =IF(C31=Info!$C$3,COUNTIF('مصرف أبو ظبى '!$C31:C$724,'مصرف أبو ظبى '!C31),"") ->  | C31: محمد مجدى محمد القناوي | D31: 10000 | F31: 373450
A32: =IF(C32=Info!$C$3,COUNTIF('مصرف أبو ظبى '!$C32:C$724,'مصرف أبو ظبى '!C32),"") ->  | C32: رد مبلغ محجوز تم حجزه لتغطية وعموله خطاب ضمان بيجام ولم يتم خصمه من البنك حتى تاريخه | D32: 560000 | F32: 933450
A33: =IF(C33=Info!$C$3,COUNTIF('مصرف أبو ظبى '!$C33:C$724,'مصرف أبو ظبى '!C33),"") ->  | C33: أنور عبدالله / الخزينة | E33: 200000 | F33: 733450 | G33: 2020-03-16
A34: =IF(C34=Info!$C$3,COUNTIF('مصرف أبو ظبى '!$C34:C$724,'مصرف أبو ظبى '!C34),"") ->  | C34: عهدة محمد أحمد فؤاد | F34: 733450
A35: =IF(C35=Info!$C$3,COUNTIF('مصرف أبو ظبى '!$C35:C$724,'مصرف أبو ظبى '!C35),"") ->  | C35: سحب بشيك أنور عبدالله / الخزينة | E35: 100000 | F35: 633450 | G35: 2020-03-17
A36: =IF(C36=Info!$C$3,COUNTIF('مصرف أبو ظبى '!$C36:C$724,'مصرف أبو ظبى '!C36),"") ->  | C36: الرصيد 3/17 | F36: 633450
A37: =IF(C37=Info!$C$3,COUNTIF('مصرف أبو ظبى '!$C37:C$724,'مصرف أبو ظبى '!C37),"") ->  | C37: تحويل من مارينا | D37: 1408466 | F37: 2041916
A38: =IF(C38=Info!$C$3,COUNTIF('مصرف أبو ظبى '!$C38:C$724,'مصرف أبو ظبى '!C38),"") ->  | C38: هانى محمد محمد الجوهري | E38: 30000 | F38: 2011916 | G38: 2020-03-18 | H38: 384
A39: =IF(C39=Info!$C$3,COUNTIF('مصرف أبو ظبى '!$C39:C$724,'مصرف أبو ظبى '!C39),"") ->  | C39: سحب شيك للخزينة / أنور عبدالله | E39: 100000 | F39: 1911916 | G39: 2020-03-18 | H39: 385
A40: =IF(C40=Info!$C$3,COUNTIF('مصرف أبو ظبى '!$C40:C$724,'مصرف أبو ظبى '!C40),"") ->  | C40: سحب شيك للخزينة / أحمد جاد | E40: 120000 | F40: 1791916 | G40: 2020-03-18 | H40: 386
A41: =IF(C41=Info!$C$3,COUNTIF('مصرف أبو ظبى '!$C41:C$724,'مصرف أبو ظبى '!C41),"") ->  | C41: أحمد محمود عبدالرحيم قبيصى دفعة من مواسير بيجام | E41: 200000 | F41: 1591916 | G41: 2020-03-18 | H41: 432
A42: =IF(C42=Info!$C$3,COUNTIF('مصرف أبو ظبى '!$C42:C$724,'مصرف أبو ظبى '!C42),"") ->  | C42: سحب بشيك حاتم بيومى / الخزينة | E42: 500000 | F42: 1091916 | G42: 2020-03-19 | H42: 389
A43: =IF(C43=Info!$C$3,COUNTIF('مصرف أبو ظبى '!$C43:C$724,'مصرف أبو ظبى '!C43),"") ->  | C43: سحب بشيك أنور عبدالله / الخزينة | E43: 100000 | F43: 991916 | G43: 2020-03-19 | H43: 390
A44: =IF(C44=Info!$C$3,COUNTIF('مصرف أبو ظبى '!$C44:C$724,'مصرف أبو ظبى '!C44),"") ->  | C44: طارق عبدالعزيز أحمد عامر - شركة آل عامر | E44: 150000 | F44: 841916 | G44: 2020-03-20
A45: =IF(C45=Info!$C$3,COUNTIF('مصرف أبو ظبى '!$C45:C$724,'مصرف أبو ظبى '!#REF!),"") ->  | C45: ياسر عرفه محمد (مركز بيتى للدهانات) | E45: 70000 | F45: 771916 | G45: 2020-03-20 | H45: 379
A46: =IF(C46=Info!$C$3,COUNTIF('مصرف أبو ظبى '!$C45:C$724,'مصرف أبو ظبى '!C45),"") ->  | C46: محمد أحمد عبدالسلام / نجارة وحداده سموحه | E46: 100000 | F46: 671916 | G46: 2020-03-22 | H46: 392
A47: =IF(C47=Info!$C$3,COUNTIF('مصرف أبو ظبى '!$C46:C$724,'مصرف أبو ظبى '!C46),"") ->  | C47: شيك أنور عبدالله / الخزينة | E47: 200000 | F47: 471916 | G47: 2020-03-23
C48: صرف شيك أنور عبدالله / الخزينة | E48: 80000 | F48: 391916 | G48: 2020-03-24 | H48: 393
C49: صرف بشيك أنور عبدالله | E49: 20000 | F49: 371916 | G49: 2020-03-25
C50: علاء محمد الغريب عطيه | E50: 405 | F50: 371511
C51: رد مبلغ محجوز تحت حساب خطابات الضمان | D51: 53744.74 | F51: 425255.74
C52: تجديد خطاب ضمان دفعة مقدمة عملية اكتوبر اوراسكوم واتش ايه | E52: 6020 | F52: 419235.74
C53: تحويل من بيجام دفعة مقدمة | D53: 2000000 | F53: 2419235.74 | G53: 2020-04-16 | H53: تحويل
C54: علاء محمد الغريب عطيه | E54: 200000 | F54: 2219235.74 | G54: 2020-04-22 | H54: 404
C55: إبراهيم محمد عمر | E55: 100000 | F55: 2119235.74 | G55: 2020-04-22 | H55: 405
C56: راضى على الدين | E56: 50000 | F56: 2069235.74 | G56: 2020-04-22 | H56: 406
C57: محمد ربيعى | E57: 35000 | F57: 2034235.74 | G57: 2020-04-22 | H57: 407
C58: محمود زارع | E58: 35000 | F58: 1999235.74 | G58: 2020-04-22 | H58: 408
C59: حسن عوف | E59: 83000 | F59: 1916235.74 | G59: 2020-04-22 | H59: 409
C60: شركة عمرو / مصنع ستار جى ار بى | E60: 200000 | F60: 1716235.74 | G60: 2020-04-22 | H60: 410
C61: تحويل الى شركة النصر للمسبوكات | E61: 1275000 | F61: 441235.74 | G61: 2020-04-22 | H61: تحويل
C62: مصاريف بنكية رسوم كشوف حسابات | E62: 120 | F62: 441115.74

Sheet مصر
B1: بيــــــــــــــان مصرف أبو ظبى
B2: م | C2: البيــــــــــــــــان | D2: مدين | E2: دائن | F2: الرصيد
C3: رصيد ما قبله 3/1 | F3: 830000
A4: =IF(C4=Info!$B$1,COUNTIF(مصر!$C4:C$724,مصر!C4),"") ->  | C4: A1 | D4: 265 | E4: 451 | F4: =SUM(F3,D4,E4) -> 830716 | G4: 2020-03-02
A5: =IF(C5=Info!$B$1,COUNTIF(مصر!$C5:C$724,مصر!C5),"") ->  | C5: A2 | D5: 650 | E5: 139 | F5: =SUM(F4,D5,E5) -> 831505 | G5: 2020-03-02
A6: =IF(C6=Info!$B$1,COUNTIF(مصر!$C6:C$724,مصر!C6),"") ->  | C6: A3 | D6: 757 | E6: 458 | F6: 832720 | G6: 2020-03-02
A7: =IF(C7=Info!$B$1,COUNTIF(مصر!$C7:C$724,مصر!C7),"") ->  | C7: A4 | D7: 292 | E7: 340 | F7: 833352
A8: =IF(C8=Info!$B$1,COUNTIF(مصر!$C8:C$724,مصر!C8),"") ->  | C8: A5 | D8: 941 | E8: 224 | F8: 834517 | G8: 2020-03-10
A9: =IF(C9=Info!$B$1,COUNTIF(مصر!$C9:C$724,مصر!C9),"") ->  | C9: A6 | D9: 813 | E9: 386 | F9: 835716
A10: =IF(C10=Info!$B$1,COUNTIF(مصر!$C10:C$724,مصر!C10),"") ->  | C10: A7 | D10: 625 | E10: 355 | F10: 836696 | G10: 2020-03-04
A11: =IF(C11=Info!$B$1,COUNTIF(مصر!$C11:C$724,مصر!C11),"") ->  | C11: A8 | D11: 617 | E11: 275 | F11: 837588 | G11: 2020-03-04
A12: =IF(C12=Info!$B$1,COUNTIF(مصر!$C12:C$724,مصر!C12),"") ->  | C12: A9 | D12: 460 | E12: 63 | F12: 838111
A13: =IF(C13=Info!$B$1,COUNTIF(مصر!$C13:C$724,مصر!C13),"") ->  | C13: A10 | D13: 797 | E13: 279 | F13: 839187 | G13: 2020-03-05 | H13: 272
A14: =IF(C14=Info!$B$1,COUNTIF(مصر!$C14:C$724,مصر!C14),"") ->  | C14: A11 | D14: 352 | E14: 438 | F14: 839977 | G14: 2020-03-05 | H14: 373
A15: =IF(C15=Info!$B$1,COUNTIF(مصر!$C15:C$724,مصر!C15),"") ->  | C15: A12 | D15: 388 | E15: 109 | F15: 840474 | G15: 2020-03-05 | H15: 376
A16: =IF(C16=Info!$B$1,COUNTIF(مصر!$C16:C$724,مصر!C16),"") ->  | C16: A13 | D16: 943 | E16: 311 | F16: 841728 | G16: 2020-03-05 | H16: 377
A17: =IF(C17=Info!$B$1,COUNTIF(مصر!$C17:C$724,مصر!C17),"") ->  | C17: A14 | D17: 129 | E17: 143 | F17: 842000 | G17: 2020-03-05 | H17: 378
A18: =IF(C18=Info!$B$1,COUNTIF(مصر!$C18:C$724,مصر!C18),"") ->  | C18: A15 | D18: 242 | E18: 390 | F18: 842632
A19: =IF(C19=Info!$B$1,COUNTIF(مصر!$C19:C$724,مصر!C19),"") ->  | C19: A16 | D19: 209 | E19: 349 | F19: 843190
A20: =IF(C20=Info!$B$1,COUNTIF(مصر!$C20:C$724,مصر!C20),"") ->  | C20: سحب بشيك أنور عبدالله / الخزينة | E20: 100000 | F20: =F19+D20-E20 -> 743190 | G20: 2020-03-09
A21: =IF(C21=Info!$B$1,COUNTIF(مصر!$C21:C$724,مصر!C21),"") ->  | C21: ابراهيم عمر | E21: 45000 | F21: 698190
A22: =IF(C22=Info!$B$1,COUNTIF(مصر!$C22:C$724,مصر!C22),"") ->  | C22: محمد مجدى محمد القناوي | E22: 80000 | F22: 618190 | G22: 2020-03-11
A23: =IF(C23=Info!$B$1,COUNTIF(مصر!$C23:C$724,مصر!C23),"") ->  | C23: محمد مجدى محمد القناوي | D23: 10000 | F23: 628190
A24: =IF(C24=Info!$B$1,COUNTIF(مصر!$C24:C$724,مصر!C24),"") ->  | C24: رد مبلغ محجوز تم حجزه لتغطية وعموله خطاب ضمان بيجام ولم يتم خصمه من البنك حتى تاريخه | D24: 560000 | F24: 1188190
A25: =IF(C25=Info!$B$1,COUNTIF(مصر!$C25:C$724,مصر!C25),"") ->  | C25: أنور عبدالله / الخزينة | E25: 200000 | F25: 988190 | G25: 2020-03-16
A26: =IF(C26=Info!$B$1,COUNTIF(مصر!$C26:C$724,مصر!C26),"") ->  | C26: عهدة محمد أحمد فؤاد | F26: 988190
A27: =IF(C27=Info!$B$1,COUNTIF(مصر!$C27:C$724,مصر!C27),"") ->  | C27: سحب بشيك أنور عبدالله / الخزينة | E27: 100000 | F27: 888190 | G27: 2020-03-17
A28: =IF(C28=Info!$B$1,COUNTIF(مصر!$C28:C$724,مصر!C28),"") ->  | C28: الرصيد 3/17 | F28: 888190
A29: =IF(C29=Info!$B$1,COUNTIF(مصر!$C29:C$724,مصر!C29),"") ->  | C29: تحويل من مارينا | D29: 1408466 | F29: 2296656 | N29: =F29+I3 -> 2296656
A30: =IF(C30=Info!$B$1,COUNTIF(مصر!$C30:C$724,مصر!C30),"") ->  | C30: هانى محمد محمد الجوهري | E30: 30000 | F30: 2266656 | G30: 2020-03-18 | H30: 384
A31: =IF(C31=Info!$B$1,COUNTIF(مصر!$C31:C$724,مصر!C31),"") ->  | C31: سحب شيك للخزينة / أنور عبدالله | E31: 100000 | F31: 2166656 | G31: 2020-03-18 | H31: 385
A32: =IF(C32=Info!$B$1,COUNTIF(مصر!$C32:C$724,مصر!C32),"") ->  | C32: سحب شيك للخزينة / أحمد جاد | E32: 120000 | F32: 2046656 | G32: 2020-03-18 | H32: 386
A33: =IF(C33=Info!$B$1,COUNTIF(مصر!$C33:C$724,مصر!C33),"") ->  | C33: أحمد محمود عبدالرحيم قبيصى دفعة من مواسير بيجام | E33: 200000 | F33: 1846656 | G33: 2020-03-18 | H33: 432
A34: =IF(C34=Info!$B$1,COUNTIF(مصر!$C34:C$724,مصر!C34),"") ->  | C34: سحب بشيك حاتم بيومى / الخزينة | E34: 500000 | F34: 1346656 | G34: 2020-03-19 | H34: 389
A35: =IF(C35=Info!$B$1,COUNTIF(مصر!$C35:C$724,مصر!C35),"") ->  | C35: سحب بشيك أنور عبدالله / الخزينة | E35: 100000 | F35: 1246656 | G35: 2020-03-19 | H35: 390
A36: =IF(C36=Info!$B$1,COUNTIF(مصر!$C36:C$724,مصر!C36),"") ->  | C36: طارق عبدالعزيز أحمد عامر - شركة آل عامر | E36: 150000 | F36: 1096656 | G36: 2020-03-20
A37: =IF(C37=Info!$B$1,COUNTIF(مصر!$C37:C$724,مصر!C37),"") ->  | C37: ياسر عرفه محمد (مركز بيتى للدهانات) | E37: 70000 | F37: 1026656 | G37: 2020-03-20 | H37: 379
A38: =IF(C38=Info!$B$1,COUNTIF(مصر!$C38:C$724,مصر!C38),"") ->  | C38: محمد أحمد عبدالسلام / نجارة وحداده سموحه | E38: 100000 | F38: 926656 | G38: 2020-03-22 | H38: 392
A39: =IF(C39=Info!$B$1,COUNTIF(مصر!$C39:C$724,مصر!C39),"") ->  | C39: شيك أنور عبدالله / الخزينة | E39: 200000 | F39: 726656 | G39: 2020-03-23
A40: =IF(C40=Info!$B$1,COUNTIF(مصر!$C40:C$724,مصر!C40),"") ->  | C40: صرف شيك أنور عبدالله / الخزينة | E40: 80000 | F40: 646656 | G40: 2020-03-24 | H40: 393
A41: =IF(C41=Info!$B$1,COUNTIF(مصر!$C41:C$724,مصر!C41),"") ->  | C41: صرف بشيك أنور عبدالله | E41: 20000 | F41: 626656 | G41: 2020-03-25
A42: =IF(C42=Info!$B$1,COUNTIF(مصر!$C42:C$724,مصر!C42),"") ->  | C42: علاء محمد الغريب عطيه | E42: 405 | F42: 626251
A43: =IF(C43=Info!$B$1,COUNTIF(مصر!$C43:C$724,مصر!C43),"") ->  | C43: رد مبلغ محجوز تحت حساب خطابات الضمان | D43: 53744.74 | F43: 679995.74
A44: =IF(C44=Info!$B$1,COUNTIF(مصر!$C44:C$724,مصر!C44),"") ->  | C44: تجديد خطاب ضمان دفعة مقدمة عملية اكتوبر اوراسكوم واتش ايه | E44: 6020 | F44: 673975.74
A45: =IF(C45=Info!$B$1,COUNTIF(مصر!$C45:C$724,مصر!C45),"") ->  | C45: تحويل من بيجام دفعة مقدمة | D45: 2000000 | F45: 2673975.74 | G45: 2020-04-16 | H45: تحويل
A46: =IF(C46=Info!$B$1,COUNTIF(مصر!$C46:C$724,مصر!C46),"") ->  | C46: علاء محمد الغريب عطيه | E46: 200000 | F46: 2473975.74 | G46: 2020-04-22 | H46: 404
A47: =IF(C47=Info!$B$1,COUNTIF(مصر!$C47:C$724,مصر!C47),"") ->  | C47: إبراهيم محمد عمر | E47: 100000 | F47: 2373975.74 | G47: 2020-04-22 | H47: 405
A48: =IF(C48=Info!$B$1,COUNTIF(مصر!$C48:C$724,مصر!C48),"") ->  | C48: راضى على الدين | E48: 50000 | F48: 2323975.74 | G48: 2020-04-22 | H48: 406
A49: =IF(C49=Info!$B$1,COUNTIF(مصر!$C49:C$724,مصر!C49),"") ->  | C49: محمد ربيعى | E49: 35000 | F49: 2288975.74 | G49: 2020-04-22 | H49: 407
A50: =IF(C50=Info!$B$1,COUNTIF(مصر!$C50:C$724,مصر!C50),"") ->  | C50: محمود زارع | E50: 35000 | F50: 2253975.74 | G50: 2020-04-22 | H50: 408
A51: =IF(C51=Info!$B$1,COUNTIF(مصر!$C51:C$724,مصر!C51),"") ->  | C51: حسن عوف | E51: 83000 | F51: 2170975.74 | G51: 2020-04-22 | H51: 409
A52: =IF(C52=Info!$B$1,COUNTIF(مصر!$C52:C$724,مصر!C52),"") ->  | C52: شركة عمرو / مصنع ستار جى ار بى | E52: 200000 | F52: 1970975.74 | G52: 2020-04-22 | H52: 410
A53: =IF(C53=Info!$B$1,COUNTIF(مصر!$C53:C$724,مصر!C53),"") ->  | C53: تحويل الى شركة النصر للمسبوكات | E53: 1275000 | F53: 695975.74 | G53: 2020-04-22 | H53: تحويل
A54: =IF(C54=Info!$B$1,COUNTIF(مصر!$C54:C$724,مصر!C54),"") ->  | C54: مصاريف بنكية رسوم كشوف حسابات | E54: 120 | F54: 695855.74
C76: بيـــــــــــــــــان خاص بالفريحة
C77: البيــــــــــــــــــان | D77: ما تم تحصيله | E77: المصروفات المباشرة | F77: الرصيد | G77: التاريخ
C78: وارد شيك دفعة مقدمة بنى عبس | D78: 4001364 | F78: =D78 -> 4001364
C79: وارد شيك دفعة مقدمة قرية إبراهيم حسن | D79: 7486822 | F79: =F78+D79-E79 -> 11488186
C80: وارد شيك دفعة مقدمة منشأة الامير | D80: 6057918 | F80: =F79+D80-E80 -> 17546104
C81: مصاريف خطابات الضمان الابتدائى 3 مشروعات | E81: 8210 | F81: 17537894
C82: محجوز غطاء ضمان نهائى 3 مشروعات الفرايحة | E82: 877305.2 | F82: 16660588.8
C83: عمولات اصدار خطابات ضمان نهائى الفرايحة 3مشروعات | E83: 140456.84 | F83: 16520131.96
C84: غطاء خطاب ضمان دفعة مقدمة قرية بنى عبس | E84: =D78*0.05 -> 200068.2 | F84: 16320063.76
C85: غطاء خطاب ضمان دفعة مقدمة قرية إبراهيم حسن | E85: =D79*0.05 -> 374341.1 | F85: 15945722.66
C86: غطاء خطاب ضمان دفعة مقدمة قرية منشأة الامير | E86: =D80*0.05 -> 302895.9 | F86: 15642826.76
C87: عمولات اصدار خطابات ضمان الدفعة المقدمة الفرايحة 3مشروعات | E87: 210553.25 | F87: 15432273.51
F88: 15432273.51
F89: 15432273.51
F90: 15432273.51
F91: 15432273.51
F92: 15432273.51
